bitfinex-derivatives/quotes_SOLF0:USTF0_20250528
["timestamp","ask_amount","ask_price","bid_price","bid_amount"]
[1748448144807,5.8831,169.92,169.9,5.92565854]
[1748448146606,5.8828,169.93,169.9,5.92565854]
[1748448147805,5.8828,169.93,169.91,5.8832]
[1748448148105,0.04054296,169.94,169.9,0.04195854]
[1748448149806,0.04054296,169.94,169.9,5.92545854]
[1748448150002,5.8829,169.93,169.9,5.92545854]
[1748448150511,5.8827,169.93,169.9,5.92555854]
[1748448151008,5.8827,169.93,169.9,0.04195854]
[1748448151709,5.8831,169.92,169.9,0.04195854]
[1748448152408,5.8828,169.93,169.9,5.92545854]
[1748448152707,0.04054296,169.94,169.9,0.04195854]
[1748448153911,5.8827,169.93,169.9,5.92565854]
[1748448154311,0.04054296,169.94,169.9,0.04195854]
[1748448155005,5.8831,169.92,169.9,0.04195854]
[1748448155316,0.04054296,169.94,169.9,0.04195854]
[1748448156217,5.8832,169.92,169.9,5.92565854]
[1748448156809,0.04054296,169.94,169.9,0.04195854]
[1748448157703,5.92304296,169.94,169.9,0.04195854]
[1748448157907,0.04054296,169.94,169.92,5.8828]
[1748448158306,0.04054296,169.94,169.9,0.04195854]
[1748448158510,0.04054296,169.94,169.9,30.12195854]
[1748448159913,0.04054296,169.94,169.93,5.8827]
[1748448164125,0.04054296,169.94,169.92,5.8829]
[1748448164629,0.04054296,169.94,169.9,30.12195854]
[1748448165322,0.04054296,169.94,169.93,5.8827]
[1748448166327,0.04054296,169.94,169.9,30.12195854]
[1748448166328,0.04054296,169.94,169.92,5.8829]
[1748448166532,0.04054296,169.94,169.9,30.12195854]
[1748448166932,5.8829,169.93,169.91,5.8833]
[1748448167124,0.04054296,169.94,169.9,0.04195854]
[1748448167831,5.8834,169.91,169.9,0.04195854]
[1748448168034,39.74241609,169.93,169.86,5.8849]
[1748448168629,39.74241609,169.93,169.85,5.8853]
[1748448168825,39.74241609,169.93,169.84,30.08]
[1748448169030,0.04164793,169.9,169.87,0.04169096]
[1748448169737,0.04164793,169.9,169.88,5.8843]
[1748448170134,0.04164793,169.9,169.87,0.04169096]
[1748448170738,5.8843,169.89,169.87,0.04169096]
[1748448171035,0.04164793,169.9,169.87,0.04169096]
[1748448172737,5.8843,169.89,169.87,0.04169096]
[1748448175642,5.8844,169.88,169.87,0.04169096]
[1748448181154,5.8842,169.89,169.87,0.04169096]
[1748448181354,0.04164793,169.9,169.87,0.04169096]
[1748448181655,0.04164793,169.9,169.88,5.8842]
[1748448182255,0.04164793,169.9,169.87,0.04169096]
[1748448183361,0.04164793,169.9,169.89,5.8841]
[1748448185752,0.04164793,169.9,169.87,0.04169096]
[1748448185753,0.04164793,169.9,169.88,5.8843]
[1748448186159,0.04164793,169.9,169.87,0.04169096]
[1748448186663,0.04164793,169.9,169.89,5.8841]
[1748448206471,0.04164793,169.9,169.88,30.06]
[1748448206868,0.04164793,169.9,169.88,35.9443]
[1748448207667,0.04164793,169.9,169.89,5.8841]
[1748448209969,0.04164793,169.9,169.87,0.04169096]
[1748448210973,5.8844,169.88,169.87,0.04169096]
[1748448211567,5.8852,169.86,169.81,30.06]
[1748448211772,1.9861,169.9,169.81,30.06]
[1748448212175,5.8848,169.87,169.84,5.8856]
[1748448212364,5.8848,169.87,169.81,30.06]
[1748448212674,0.04534928,169.86,169.82,0.04123397]
[1748448212876,0.04534928,169.86,169.85,5.8854]
[1748448214573,11.14,169.91,169.89,5.8838]
[1748448215972,11.14,169.91,169.88,5.92348135]
[1748448216276,11.14,169.91,169.88,0.03918135]
[1748448217073,11.14,169.91,169.89,5.8841]
[1748448217378,11.14,169.91,169.88,0.03918135]
[1748448217580,11.14,169.91,169.89,5.8841]
[1748448218871,11.14,169.91,169.9,5.8837]
[1748448219576,11.14,169.91,169.88,0.03918135]
[1748448219577,11.14,169.91,169.89,5.8839]
[1748448219778,11.14,169.91,169.88,0.03918135]
[1748448219978,5.8839,169.9,169.88,5.92358135]
[1748448220182,11.14,169.91,169.88,5.92358135]
[1748448220480,17.0236,169.91,169.88,5.92358135]
[1748448221975,5.8837,169.9,169.88,5.92358135]
[1748448222276,5.8837,169.9,169.88,0.03918135]
[1748448222470,11.14,169.91,169.88,0.03918135]
[1748448222676,17.0236,169.91,169.88,5.92338135]
[1748448223174,17.0236,169.91,169.88,0.03918135]
[1748448223370,11.14,169.91,169.88,0.03918135]
[1748448223780,11.14,169.91,169.9,5.8837]
[1748448224280,11.14,169.91,169.89,30.06]
[1748448224975,11.14,169.91,169.9,5.8837]
[1748448229579,10.62073613,169.92,169.91,5.8834]
[1748448231678,23.78,169.95,169.94,5.8823]
[1748448231886,30.04,170.03,169.93,39.70241609]
[1748448232280,30.04,170.03,169.99,5.8803]
[1748448232782,35.96148526,170.03,169.99,5.92470339]
[1748448233184,30.08198526,170.03,169.99,0.04440339]
[1748448233384,35.96138526,170.03,169.99,0.04440339]
[1748448233788,35.96138526,170.03,169.99,5.92480339]
[1748448233978,19.7496,170.02,169.99,5.92480339]
[1748448235481,5.88,170.01,169.99,0.04440339]
[1748448236381,19.7496,170.02,169.99,0.04440339]
[1748448236586,13.87,170.02,169.99,0.04440339]
[1748448237589,5.8802,170.0,169.99,0.04440339]
[1748448238294,5.8802,170.0,169.93,30.04]
[1748448238295,5.8813,169.97,169.93,30.04]
[1748448238488,2.0838,169.99,169.87,9.66241609]
[1748448238791,2.0838,169.99,169.9,30.04]
[1748448239394,0.04093364,169.96,169.93,0.03850771]
[1748448240077,0.04093364,169.96,169.94,5.8821]
[1748448240281,0.04093364,169.96,169.93,0.03850771]
[1748448240679,0.04093364,169.96,169.94,5.8823]
[1748448240885,0.04093364,169.96,169.93,0.03850771]
[1748448241286,0.04093364,169.96,169.95,5.882]
[1748448244792,13.87,170.02,170.0,5.8802]
[1748448245690,13.87,170.02,170.01,5.8799]
[1748448246290,13.87,170.02,170.0,5.8801]
[1748448246491,13.87,170.02,169.99,0.04001519]
[1748448247486,1.9312,170.01,169.99,0.04001519]
[1748448247786,5.881,169.98,169.95,5.8819]
[1748448247986,1.9312,170.01,169.93,30.02]
[1748448248186,5.8806,169.99,169.93,30.02]
[1748448248597,0.03798787,169.98,169.94,0.03852668]
[1748448248892,0.03798787,169.98,169.96,5.8816]
[1748448249798,5.91898787,169.98,169.95,5.8819]
[1748448250000,5.91898787,169.98,169.94,0.03852668]
[1748448250001,0.03798787,169.98,169.94,0.03852668]
[1748448250496,5.91908787,169.98,169.95,5.8817]
[1748448251297,5.91908787,169.98,169.96,5.8816]
[1748448251595,0.03798787,169.98,169.96,5.8816]
[1748448252599,11.54798787,169.98,169.96,5.8816]
[1748448253002,17.42898787,169.98,169.96,5.8816]
[1748448253896,11.54798787,169.98,169.96,5.8816]
[1748448255102,17.42898787,169.98,169.96,5.8816]
[1748448256305,11.54798787,169.98,169.96,5.8816]
[1748448257215,17.42898787,169.98,169.95,5.8818]
[1748448257508,11.54798787,169.98,169.95,5.8818]
[1748448257704,5.8819,169.96,169.94,0.03852668]
[1748448257908,11.54798787,169.98,169.94,0.03852668]
[1748448258405,5.8818,169.96,169.94,0.03852668]
[1748448259302,11.54798787,169.98,169.94,0.03852668]
[1748448259508,11.54798787,169.98,169.97,5.8813]
[1748448259708,11.54798787,169.98,169.94,0.03852668]
[1748448260009,17.42908787,169.98,169.95,5.8819]
[1748448260211,17.42908787,169.98,169.94,0.03852668]
[1748448260511,17.42908787,169.98,169.95,5.8818]
[1748448262111,17.42908787,169.98,169.96,5.8816]
[1748448262408,11.54798787,169.98,169.96,5.8816]
[1748448263210,17.42898787,169.98,169.96,5.8816]
[1748448263410,11.54798787,169.98,169.96,5.8816]
[1748448263616,11.54798787,169.98,169.94,0.03852668]
[1748448264714,11.54798787,169.98,169.95,5.8818]
[1748448264715,17.42908787,169.98,169.95,5.8818]
[1748448264913,11.54798787,169.98,169.94,0.03852668]
[1748448266220,17.42918787,169.98,169.95,5.8818]
[1748448266518,5.91918787,169.98,169.95,5.8818]
[1748448267417,5.8813,169.97,169.95,5.8818]
[1748448267626,0.03798787,169.98,169.95,5.8818]
[1748448267917,5.91908787,169.98,169.95,5.8818]
[1748448268426,0.03798787,169.98,169.94,0.03852668]
[1748448269218,0.03798787,169.98,169.97,5.8813]
[1748448272625,0.03798787,169.98,169.94,30.05852668]
[1748448273119,5.8818,169.96,169.94,0.03852668]
[1748448273620,5.8815,169.97,169.94,5.92062668]
[1748448273814,0.03798787,169.98,169.94,5.92062668]
[1748448274509,5.8814,169.97,169.94,5.92062668]
[1748448274822,5.8814,169.97,169.95,5.8819]
[1748448275120,0.03798787,169.98,169.94,0.03852668]
[1748448275812,0.03798787,169.98,169.91,30.02]
[1748448275813,9.70040396,169.98,169.88,1.9408]
[1748448276016,5.8831,169.92,169.82,3.9517]
[1748448276217,9.66241609,169.95,169.83,30.02]
[1748448276418,9.66241609,169.95,169.87,5.8847]
[1748448276724,2.0075,169.94,169.87,5.8847]
[1748448276918,0.04525954,169.92,169.89,0.04226759]
[1748448277308,5.8834,169.91,169.89,0.04226759]
[1748448277509,0.04525954,169.92,169.89,0.04226759]
[1748448277920,5.8837,169.9,169.89,0.04226759]
[1748448279319,5.8849,169.87,169.83,30.02]
[1748448279625,9.66241609,169.92,169.83,30.02]
[1748448280318,5.8845,169.88,169.86,0.04137979]
[1748448280921,5.8845,169.88,169.86,5.92647979]
[1748448282027,5.92776384,169.89,169.86,5.92647979]
[1748448282824,0.04346384,169.89,169.86,0.04137979]
[1748448283220,5.8847,169.88,169.86,0.04137979]
[1748448283825,5.8847,169.87,169.86,0.04137979]
[1748448284025,0.04346384,169.89,169.86,0.04137979]
[1748448284626,5.8846,169.88,169.86,0.04137979]
[1748448285826,5.8847,169.87,169.86,0.04137979]
[1748448286030,0.04346384,169.89,169.86,5.92647979]
[1748448286225,0.04346384,169.89,169.86,0.04137979]
[1748448287324,0.04346384,169.89,169.88,5.8844]
[1748448300537,0.04346384,169.89,169.86,0.04137979]
[1748448301238,5.8848,169.87,169.86,0.04137979]
[1748448302431,5.886,169.84,169.78,3.9915]
[1748448302639,5.886,169.84,169.81,5.8866]
[1748448303034,5.886,169.84,169.79,30.04]
[1748448303239,5.8857,169.85,169.79,30.04]
[1748448303434,5.8857,169.85,169.8,0.04256732]
[1748448303638,0.04146355,169.84,169.8,9.70498341]
[1748448303843,0.04146355,169.84,169.83,5.8861]
[1748448304742,0.04146355,169.84,169.83,35.9261]
[1748448305749,0.04146355,169.84,169.8,32.02686732]
[1748448306344,0.04146355,169.84,169.83,5.8861]
[1748448306946,0.04146355,169.84,169.82,5.8864]
[1748448307140,0.04146355,169.84,169.8,32.02686732]
[1748448307645,0.04146355,169.84,169.83,5.8861]
[1748448310951,30.04,169.92,169.9,5.8835]
[1748448311243,6.0142,169.94,169.9,5.8835]
[1748448311448,6.0142,169.94,169.84,30.04]
[1748448312045,0.0377407,169.91,169.87,0.04310397]
[1748448314144,5.9211407,169.91,169.88,5.8843]
[1748448314348,0.0377407,169.91,169.87,0.04310397]
[1748448314745,0.0377407,169.91,169.89,5.8838]
[1748448315151,0.0377407,169.91,169.87,0.04310397]
[1748448315353,0.0377407,169.91,169.9,5.8837]
[1748448316549,12.64,169.92,169.91,5.8834]
[1748448318851,12.64,169.92,169.9,5.8836]
[1748448319054,12.64,169.92,169.88,30.04]
[1748448320453,18.5231,169.92,169.89,5.884]
[1748448320961,5.8834,169.91,169.89,5.884]
[1748448321154,12.64,169.92,169.88,30.04]
[1748448321854,5.8834,169.91,169.88,35.9243]
[1748448322360,18.5232,169.92,169.89,5.8838]
[1748448323659,12.64,169.92,169.88,35.9244]
[1748448324156,5.8834,169.91,169.88,30.04]
[1748448324356,12.64,169.92,169.88,30.04]
[1748448324960,12.64,169.92,169.9,5.8835]
[1748448326861,5.92610148,169.93,169.9,5.8835]
[1748448327161,0.04320148,169.93,169.88,30.04]
[1748448327660,0.04320148,169.93,169.92,5.883]
[1748448327855,0.04320148,169.93,169.91,0.03907407]
[1748448328261,5.92600148,169.93,169.91,0.03907407]
[1748448328667,0.04320148,169.93,169.91,0.03907407]
[1748448329063,0.04320148,169.93,169.92,5.883]
[1748448332666,23.25,169.96,169.95,5.882]
[1748448336770,10.92,170.0,169.92,43.56171609]
[1748448337372,10.92,170.0,169.99,5.8806]
[1748448339265,10.92,170.0,169.98,0.03972537]
[1748448340072,10.92,170.0,169.99,5.8806]
[1748448342875,10.92,170.0,169.98,0.03972537]
[1748448342876,10.92,170.0,169.98,5.92052537]
[1748448343077,10.92,170.0,169.98,0.03972537]
[1748448344280,10.92,170.0,169.98,5.92032537]
[1748448345176,10.92,170.0,169.99,5.8806]
[1748448347783,10.92,170.0,169.98,5.92052537]
[1748448348284,10.92,170.0,169.98,0.03972537]
[1748448348583,10.92,170.0,169.99,5.8806]
[1748448348986,10.92,170.0,169.98,0.03972537]
[1748448349285,10.92,170.0,169.99,5.8806]
[1748448349782,10.92,170.0,169.98,5.92052537]
[1748448349981,10.92,170.0,169.98,0.03972537]
[1748448350685,10.92,170.0,169.98,5.92052537]
[1748448351685,5.92432595,170.01,169.98,5.92052537]
[1748448352683,5.8803,170.0,169.98,5.92052537]
[1748448352983,0.04422595,170.01,169.98,0.03972537]
[1748448353381,9.71422595,170.01,169.98,0.03972537]
[1748448353582,5.8806,169.99,169.98,0.03972537]
[1748448353984,9.71422595,170.01,169.94,30.02]
[1748448355079,9.71422595,170.01,169.96,0.03750706]
[1748448355583,5.8813,169.97,169.96,0.03750706]
[1748448356291,5.881,169.98,169.96,0.03750706]
[1748448356986,9.71422595,170.01,169.96,0.03750706]
[1748448358485,9.71422595,170.01,170.0,5.8802]
[1748448359782,9.71422595,170.01,169.99,5.8804]
[1748448359982,9.71422595,170.01,169.96,0.03750706]
[1748448360386,9.71422595,170.01,169.98,5.8807]
[1748448360687,15.59412595,170.01,169.98,5.8807]
[1748448361191,15.59412595,170.01,169.96,0.03750706]
[1748448361789,15.59412595,170.01,169.98,5.8807]
[1748448361986,5.8803,170.0,169.98,5.8807]
[1748448362288,9.71422595,170.01,169.96,0.03750706]
[1748448362590,5.881,169.98,169.96,0.03750706]
[1748448362888,9.71422595,170.01,169.96,0.03750706]
[1748448363189,9.71422595,170.01,169.96,5.91910706]
[1748448363492,5.8809,169.99,169.96,5.91910706]
[1748448364789,9.71422595,170.01,169.96,0.03750706]
[1748448364989,9.71422595,170.01,169.86,9.66241609]
[1748448364990,4.0627,170.0,169.86,9.66241609]
[1748448365291,5.8826,169.94,169.91,5.8832]
[1748448365494,30.02,169.98,169.91,5.8832]
[1748448365790,39.68241609,169.98,169.91,5.8832]
[1748448366091,0.0380857,169.96,169.93,0.04080716]
[1748448366995,0.0380857,169.96,169.95,5.882]
[1748448369192,0.0380857,169.96,169.93,0.04080716]
[1748448369597,0.0380857,169.96,169.93,5.92340716]
[1748448369794,5.9199857,169.96,169.93,5.92340716]
[1748448370187,0.0380857,169.96,169.93,0.04080716]
[1748448370593,5.8822,169.95,169.93,0.04080716]
[1748448370897,0.0380857,169.96,169.93,5.92340716]
[1748448371491,5.9199857,169.96,169.94,5.8823]
[1748448371698,0.0380857,169.96,169.93,0.04080716]
[1748448372193,0.0380857,169.96,169.94,5.8823]
[1748448372393,0.0380857,169.96,169.93,0.04080716]
[1748448372691,5.9196857,169.96,169.93,5.92320716]
[1748448372890,0.0380857,169.96,169.93,0.04080716]
[1748448373995,0.0380857,169.96,169.95,5.882]
[1748448381898,0.0380857,169.96,169.94,5.8822]
[1748448382100,0.0380857,169.96,169.93,0.04080716]
[1748448382403,0.0380857,169.96,169.95,5.882]
[1748448382906,0.0380857,169.96,169.93,0.04080716]
[1748448384512,5.8822,169.95,169.93,5.92330716]
[1748448384804,0.0380857,169.96,169.93,5.92330716]
[1748448384805,0.0380857,169.96,169.93,0.04080716]
[1748448385309,0.0380857,169.96,169.95,5.882]
[1748448385509,0.0380857,169.96,169.95,35.902]
[1748448391818,13.29,169.97,169.96,5.8816]
[1748448392514,10.02,170.04,169.99,5.8805]
[1748448392814,0.03829275,170.03,170.0,0.0418738]
[1748448393208,0.03829275,170.03,170.0,5.9220738]
[1748448393209,5.8797,170.02,170.0,5.9220738]
[1748448393915,5.91769275,170.03,170.0,5.9220738]
[1748448394120,0.03829275,170.03,170.0,5.9220738]
[1748448394417,5.91759275,170.03,170.0,5.9220738]
[1748448394612,0.03829275,170.03,170.01,5.8799]
[1748448395309,0.03829275,170.03,170.02,5.8796]
[1748448396016,0.03829275,170.03,170.01,5.8798]
[1748448396210,0.03829275,170.03,170.0,0.0418738]
[1748448397110,0.03829275,170.03,170.02,5.8796]
[1748448406926,9.275e-05,170.03,170.02,5.8796]
[1748448407424,9.94,170.05,170.04,5.8789]
[1748448407624,9.94,170.05,170.04,35.8789]
[1748448409614,0.04296794,170.06,170.05,5.8785]
[1748448409819,2.084,170.14,170.05,9.66241609]
[1748448410227,10.234,170.14,170.05,9.66241609]
[1748448410423,16.1097,170.14,170.05,9.66241609]
[1748448410726,0.03956656,170.11,170.08,0.03819908]
[1748448410926,0.03956656,170.11,170.08,30.03819908]
[1748448411131,0.03956656,170.11,170.1,5.8766]
[1748448416337,0.03956656,170.11,170.09,5.877]
[1748448416636,0.03956656,170.11,170.08,30.03819908]
[1748448417130,0.03956656,170.11,170.1,5.8768]
[1748448420541,0.03956656,170.11,170.09,5.877]
[1748448420836,0.03956656,170.11,170.08,30.03819908]
[1748448421038,0.03956656,170.11,170.1,5.8768]
[1748448421634,8.15,170.14,170.13,5.8758]
[1748448422027,8.15,170.14,170.09,9.66241609]
[1748448422028,5.8747,170.16,170.12,29.98]
[1748448422639,5.8747,170.16,170.12,30.02498631]
[1748448422640,5.91411655,170.16,170.12,30.02498631]
[1748448423742,0.03941655,170.16,170.12,30.02498631]
[1748448423930,0.03941655,170.16,170.12,0.04498631]
[1748448424133,0.03941655,170.16,170.07,29.98]
[1748448424739,5.8765,170.11,170.09,5.8769]
[1748448424939,9.66241609,170.15,170.07,29.98]
[1748448425140,0.03847447,170.13,170.09,0.04331513]
[1748448425644,5.8768,170.11,170.09,0.04331513]
[1748448425838,0.03847447,170.13,170.09,0.04331513]
[1748448426239,5.91437447,170.13,170.09,0.04331513]
[1748448426442,0.03847447,170.13,170.09,0.04331513]
[1748448427945,0.03847447,170.13,170.12,5.8761]
[1748448434748,12.21,170.17,170.11,39.64241609]
[1748448435849,0.04289939,170.16,170.11,39.64241609]
[1748448436348,0.04289939,170.16,170.15,5.8751]
[1748448436546,0.04289939,170.16,170.15,35.8551]
[1748448437445,3.8998,170.23,170.18,5.874]
[1748448438349,0.03845399,170.2,170.18,5.874]
[1748448440845,0.03845399,170.2,170.15,29.98]
[1748448441052,5.91195399,170.2,170.15,29.98]
[1748448441243,0.03845399,170.2,170.15,29.98]
[1748448441552,14.0239,170.19,170.15,29.98]
[1748448441749,0.03845399,170.2,170.15,29.98]
[1748448442151,5.91185399,170.2,170.16,5.8745]
[1748448442451,0.03845399,170.2,170.15,29.98]
[1748448442647,0.03845399,170.2,170.17,5.8743]
[1748448442849,0.03845399,170.2,170.15,29.98]
[1748448443149,5.91205399,170.2,170.16,5.8746]
[1748448443355,0.03845399,170.2,170.16,5.8746]
[1748448443654,0.03845399,170.2,170.15,29.98]
[1748448444448,0.03845399,170.2,170.15,35.8549]
[1748448445856,0.03845399,170.2,170.16,5.8747]
[1748448446250,5.8739,170.19,170.15,29.98]
[1748448446545,0.03845399,170.2,170.17,5.8742]
[1748448446753,5.91195399,170.2,170.17,5.8742]
[1748448447258,0.03845399,170.2,170.17,5.8742]
[1748448447858,5.91185399,170.2,170.17,5.8742]
[1748448448262,0.03845399,170.2,170.19,5.8737]
[1748448448450,0.03845399,170.2,170.18,0.04491768]
[1748448449158,5.8737,170.19,170.18,0.04491768]
[1748448452863,5.91185399,170.2,170.18,0.04491768]
[1748448453162,0.03845399,170.2,170.18,0.04491768]
[1748448454964,5.91205399,170.2,170.18,5.91881768]
[1748448455762,0.03845399,170.2,170.18,0.04491768]
[1748448456468,5.91195399,170.2,170.18,0.04491768]
[1748448456771,5.8737,170.19,170.18,0.04491768]
[1748448457067,0.03845399,170.2,170.18,5.91891768]
[1748448457770,5.91195399,170.2,170.18,5.91891768]
[1748448458268,0.03845399,170.2,170.18,5.91891768]
[1748448458865,5.91175399,170.2,170.18,5.91891768]
[1748448459369,0.03845399,170.2,170.19,5.8737]
[1748448459966,0.03845399,170.2,170.18,5.91881768]
[1748448460569,5.8737,170.19,170.18,0.04491768]
[1748448472970,5.91195399,170.2,170.18,0.04491768]
[1748448473371,0.03845399,170.2,170.18,0.04491768]
[1748448475184,5.91195399,170.2,170.18,0.04491768]
[1748448475381,0.03845399,170.2,170.18,0.04491768]
[1748448475781,5.8737,170.19,170.18,0.04491768]
[1748448481187,5.8737,170.19,170.18,1.768e-05]
[1748448484295,5.91195399,170.2,170.18,1.768e-05]
[1748448484487,0.03845399,170.2,170.18,1.768e-05]
[1748448484989,5.8737,170.19,170.18,1.768e-05]
[1748448486394,5.91185399,170.2,170.18,1.768e-05]
[1748448487295,5.8737,170.19,170.18,1.768e-05]
[1748448489293,5.91195399,170.2,170.18,1.768e-05]
[1748448489694,0.03845399,170.2,170.18,1.768e-05]
[1748448490596,0.03845399,170.2,170.18,5.87381768]
[1748448492298,0.03845399,170.2,170.19,5.8737]
[1748448498101,0.03845399,170.2,170.18,35.83391768]
[1748448499796,0.03845399,170.2,170.19,5.8737]
[1748448505610,5.399e-05,170.2,170.19,5.8737]
[1748448505798,9.48,170.23,170.22,5.8727]
[1748448506108,15.3526,170.23,170.18,29.96001768]
[1748448506506,15.3526,170.23,170.2,5.8731]
[1748448506708,5.8728,170.22,170.18,29.96001768]
[1748448507002,0.04075444,170.22,170.18,29.96001768]
[1748448507208,5.8733,170.21,170.18,29.96001768]
[1748448507405,0.04075444,170.22,170.18,29.96001768]
[1748448508111,0.04075444,170.22,170.19,5.8736]
[1748448508408,0.04075444,170.22,170.18,29.96001768]
[1748448508604,0.04075444,170.22,170.21,5.873]
[1748448511204,9.48,170.23,170.22,5.8727]
[1748448511509,9.48,170.23,170.22,35.8327]
[1748448513810,11.3,170.25,170.22,29.96]
[1748448514208,11.3,170.25,170.23,5.8721]
[1748448514511,11.3,170.25,170.22,29.96]
[1748448514709,11.34225656,170.25,170.22,30.00272765]
[1748448514911,11.34225656,170.25,170.23,5.8723]
[1748448515305,11.34225656,170.25,170.24,5.872]
[1748448518410,8.26,170.31,170.23,9.66241609]
[1748448518600,8.26,170.31,170.23,15.64821609]
[1748448519007,8.26,170.31,170.3,5.8699]
[1748448519199,517.08241609,170.4,170.28,29.94]
[1748448519200,29.94,170.37,170.28,29.94]
[1748448519405,2.0197,170.36,170.31,0.04038925]
[1748448520714,5.8692,170.32,170.31,0.04038925]
[1748448521013,2.0197,170.36,170.31,0.04038925]
[1748448521513,2.0197,170.36,170.31,5.90988925]
[1748448521714,2.0197,170.36,170.31,0.04038925]
[1748448522013,5.8691,170.33,170.31,0.04038925]
[1748448522314,2.0197,170.36,170.31,0.04038925]
[1748448523012,5.8691,170.33,170.31,0.04038925]
[1748448523712,2.0197,170.36,170.31,0.04038925]
[1748448524014,5.8691,170.33,170.31,0.04038925]
[1748448524713,5.8691,170.33,170.31,5.90988925]
[1748448524915,5.8691,170.33,170.31,0.04038925]
[1748448525417,5.8692,170.32,170.31,0.04038925]
[1748448526314,5.869,170.33,170.31,0.04038925]
[1748448526515,2.0197,170.36,170.31,0.04038925]
[1748448527515,5.8692,170.32,170.31,0.04038925]
[1748448536628,5.8702,170.3,170.25,29.94]
[1748448537034,2.0197,170.36,170.25,29.94]
[1748448537330,5.8702,170.3,170.25,29.94]
[1748448537532,0.04135806,170.29,170.27,5.8707]
[1748448539437,0.04135806,170.29,170.28,5.8706]
[1748448539729,0.04135806,170.29,170.26,0.04509363]
[1748448540234,0.04135806,170.29,170.27,5.8707]
[1748448540833,0.04135806,170.29,170.26,0.04509363]
[1748448541933,5.91175806,170.29,170.27,5.8709]
[1748448542437,0.04135806,170.29,170.27,5.8709]
[1748448543039,5.91165806,170.29,170.27,5.8709]
[1748448543734,0.04135806,170.29,170.27,5.8709]
[1748448544439,0.04135806,170.29,170.28,5.8706]
[1748448545237,0.04135806,170.29,170.27,5.8708]
[1748448545437,5.91155806,170.29,170.27,5.8708]
[1748448545646,0.04135806,170.29,170.26,0.04509363]
[1748448545938,5.8709,170.27,170.26,0.04509363]
[1748448547134,5.8707,170.28,170.26,0.04509363]
[1748448547339,29.98135806,170.29,170.26,0.04509363]
[1748448547540,5.8709,170.27,170.26,0.04509363]
[1748448553836,5.8709,170.27,170.26,9.363e-05]
[1748448554238,1.9526,170.28,170.19,5.8735]
[1748448554438,1.9626,170.26,170.19,5.8735]
[1748448554633,1.9626,170.26,170.17,29.94]
[1748448555237,5.873,170.21,170.2,0.03753671]
[1748448557443,5.8728,170.22,170.2,0.03753671]
[1748448558244,5.8728,170.22,170.2,5.91083671]
[1748448559048,5.8728,170.22,170.2,0.03753671]
[1748448560746,5.873,170.21,170.2,0.03753671]
[1748448563451,5.8728,170.22,170.2,0.03753671]
[1748448565149,5.873,170.21,170.2,0.03753671]
[1748448567150,12.80467946,170.21,170.2,0.03753671]
[1748448567950,5.873,170.21,170.2,0.03753671]
[1748448569450,0.0430646,170.23,170.12,1.9671]
[1748448569451,10.87572017,170.23,170.12,1.9671]
[1748448569745,29.94,170.21,170.11,4.0231]
[1748448570050,5.8746,170.17,170.11,4.0231]
[1748448570248,5.8746,170.17,170.15,5.8749]
[1748448570444,0.0451852,170.18,170.14,0.04465312]
[1748448570840,0.0451852,170.18,170.14,29.98465312]
[1748448571247,0.0451852,170.18,170.17,5.8744]
[1748448573453,29.94,170.26,170.15,10.83265557]
[1748448573754,29.94,170.26,170.14,29.94]
[1748448573954,13.01,170.25,170.19,5.8735]
[1748448574455,5.8729,170.22,170.2,0.04003762]
[1748448575555,5.873,170.21,170.2,0.04003762]
[1748448578861,5.8749,170.16,170.14,29.94]
[1748448579054,10.83265557,170.21,170.12,2.032]
[1748448579356,5.8749,170.16,170.11,33.9631]
[1748448579859,0.04006904,170.15,170.13,5.8755]
[1748448580255,0.04006904,170.15,170.12,0.03872657]
[1748448581059,0.04006904,170.15,170.13,5.8756]
[1748448582159,5.91516904,170.15,170.13,5.8756]
[1748448582761,0.04006904,170.15,170.13,5.8756]
[1748448583856,0.04006904,170.15,170.12,0.03872657]
[1748448584259,5.8758,170.13,170.12,0.03872657]
[1748448584865,0.04006904,170.15,170.12,0.03872657]
[1748448586153,0.04006904,170.15,170.14,5.8754]
[1748448597464,9.44,170.17,170.16,5.8747]